[Event "DVM U14 2019"]
[Site "Magedburg"]
[Date "2019.12.28"]
[Round "4"]
[White "Bildat, Emilia"]
[Black "Muller, Magnus"]
[Result "0-1"]
[ECO "A15"]
[WhiteElo "1754"]
[BlackElo "1481"]
[Annotator "NA"]
[PlyCount "58"]
[EventDate "2019.12.27"]
[EventType "team-tourn"]
[EventRounds "7"]
[EventCountry "GER"]
[SourceTitle "playchess.com"]
[Source "ChessBase"]
[SourceQuality "1"]
[WhiteTeam "SC Turm Lüneburg"]
[BlackTeam "ESV Gera"]
[BlackTeamCountry "FAI"]
[TimeControl "40/5400+30:1800+30"]

1. c4 {[%emt 0:00:00]} Nf6 {[%emt 0:00:52]} 2. g3 {[%emt 0:00:00]} c6 {[%emt 0:00:26]} 3. Bg2 {[%emt 0:00:28]} d5 {[%emt 0:00:10]} 4. Nf3 {[%emt 0:01:31]} g6 {[%emt 0:00:34]} 5. b3 {[%emt 0:01:33]} Bg7 {[%emt 0:00:06]} 6. Bb2 {[%emt 0:00:34]} O-O {[%emt 0:00:04]} 7. O-O {[%emt 0:00:41]} a5 {[%emt 0:00:04]} 8. d3 {[%emt 0:01:20]} Re8 {[%emt 0:01:18]} 9. e3 {[%emt 0:07:26]} Na6 {[%emt 0:00:12]} 10. d4 {[%emt 0:05:11]} Bf5 {[%emt 0:03:02]} 11. a3 {[%emt 0:02:57]} Rc8 {[%emt 0:01:34]} 12. Ne5 {[%emt 0:03:52]} b5 {[%emt 0:06:33]} 13. c5 {[%emt 0:03:29]} Nd7 {[%emt 0:02:22]} 14. Nd3 {[%emt 0:09:01]} e5 {[%emt 0:00:10]} 15. g4 {[%emt 0:04:29]} Bxd3 {[%emt 0:00:43]} 16. Qxd3 {[%emt 0:00:07]} exd4 {[%emt 0:00:07]} 17. exd4 {[%emt 0:00:21]} Naxc5 {[%emt 0:00:13]} 18. dxc5 {[%emt 0:02:09]} Bxb2 {[%emt 0:00:12]} 19. Ra2 {[%emt 0:00:09]} Bg7 {[%emt 0:00:09]} 20. b4 {[%emt 0:00:28]} Ne5 {[%emt 0:01:29]} 21. Qg3 {[%emt 0:03:21]} Ra8 {[%emt 0:00:48]} 22. Re2 {[%emt 0:06:28]} axb4 {[%emt 0:01:24]} 23. axb4 {[%emt 0:00:22]} Nc4 {[%emt 0:00:38]} 24. Rxe8+ {[%emt 0:01:30]} Qxe8 {[%emt 0:00:04]} 25. Qb3 {[%emt 0:08:26]} Be5 {[%emt 0:01:20]} 26. Rd1 {[%emt 0:02:54]} Ra4 {[%emt 0:01:39]} 27. Bf1 {[%emt 0:02:07]} Qe6 {[%emt 0:02:14]} 28. h3 {[%emt 0:00:46]} Qf6 {[%emt 0:00:13]} 29. Rc1 {[%emt 0:04:24]} Qf4 {[%emt 0:00:08] normal} 0-1

[Event "DVM U14 2019"]
[Site "Magedburg"]
[Date "2019.12.28"]
[Round "4"]
[White "Nied, Pascal"]
[Black "Eilenberg, Jonas"]
[Result "1/2-1/2"]
[ECO "C03"]
[WhiteElo "1717"]
[BlackElo "2112"]
[Annotator "NA"]
[PlyCount "50"]
[EventDate "2019.12.27"]
[EventType "team-tourn"]
[EventRounds "7"]
[EventCountry "GER"]
[SourceTitle "playchess.com"]
[Source "ChessBase"]
[SourceQuality "1"]
[WhiteTeam "SC Untergrombach"]
[BlackTeam "SV Königsjäger Süd-West"]
[BlackTeamCountry "GER"]
[TimeControl "40/5400+30:1800+30"]

1. e4 {[%emt 0:00:00]} e6 {[%emt 0:00:00]} 2. d4 {[%emt 0:00:00]} d5 {[%emt 0:00:00]} 3. Nd2 {[%emt 0:00:00]} Be7 {[%emt 0:00:00]} 4. c3 {[%emt 0:00:00]} c5 {[%emt 0:00:01]} 5. exd5 {[%emt 0:00:39]} Qxd5 {[%emt 0:00:50]} 6. Bc4 {[%emt 0:00:29]} Qd7 {[%emt 0:01:26]} 7. Ngf3 {[%emt 0:00:51]} Nc6 {[%emt 0:00:21]} 8. dxc5 {[%emt 0:01:59]} Bxc5 {[%emt 0:01:33]} 9. O-O {[%emt 0:00:29]} Nf6 {[%emt 0:00:11]} 10. Nb3 {[%emt 0:00:59]} Qxd1 {[%emt 0:01:14]} 11. Rxd1 {[%emt 0:00:10]} Bb6 {[%emt 0:00:04]} 12. Nbd4 {[%emt 0:04:01]} Nxd4 {[%emt 0:02:26]} 13. Nxd4 {[%emt 0:00:18]} Bd7 {[%emt 0:01:09]} 14. h3 {[%emt 0:01:25]} O-O {[%emt 0:00:29]} 15. Be3 {[%emt 0:03:19]} Rac8 {[%emt 0:02:26]} 16. Bb3 {[%emt 0:01:34]} h6 {[%emt 0:03:23]} 17. Nc2 {[%emt 0:02:13]} Bxe3 {[%emt 0:00:54]} 18. Nxe3 {[%emt 0:00:09]} a5 {[%emt 0:00:20]} 19. Rd4 {[%emt 0:05:59]} e5 {[%emt 0:02:33]} 20. Rd6 {[%emt 0:08:02]} a4 {[%emt 0:02:50]} 21. Bd5 {[%emt 0:02:12]} b5 {[%emt 0:05:41]} 22. a3 {[%emt 0:02:10]} Rfd8 {[%emt 0:07:16]} 23. Rd1 {[%emt 0:02:50]} Kf8 {[%emt 0:01:12]} 24. Bc6 {[%emt 0:01:35]} Ke8 {[%emt 0:01:38]} 25. Bxd7+ {[%emt 0:02:03] normal} Nxd7 1/2-1/2

[Event "DVM U14 2019"]
[Site "Magedburg"]
[Date "2019.12.28"]
[Round "4"]
[White "Korek, Jakob Alexander"]
[Black "Burger, Tim"]
[Result "1/2-1/2"]
[ECO "A40"]
[WhiteElo "1656"]
[BlackElo "1250"]
[Annotator "NA"]
[PlyCount "59"]
[EventDate "2019.12.27"]
[EventType "team-tourn"]
[EventRounds "7"]
[EventCountry "GER"]
[SourceTitle "playchess.com"]
[Source "ChessBase"]
[SourceQuality "1"]
[WhiteTeam "SV Königsjäger Süd-West"]
[BlackTeam "SC Untergrombach"]
[WhiteTeamCountry "GER"]
[TimeControl "40/5400+30:1800+30"]

1. d4 {[%emt 0:00:00]} e5 2. dxe5 {[%emt 0:00:00]} Nc6 {[%emt 0:00:00]} 3. Nf3 {[%emt 0:00:00]} Qe7 {[%emt 0:00:01]} 4. Bf4 {[%emt 0:00:12]} Qb4+ {[%emt 0:00:33]} 5. Bd2 {[%emt 0:05:45]} Qxb2 {[%emt 0:01:02]} 6. Bc3 {[%emt 0:00:35]} Bb4 {[%emt 0:00:25]} 7. Bxb4 {[%emt 0:02:32]} Nxb4 {[%emt 0:02:17]} 8. Na3 Qxa3 {[%emt 0:01:06]} 9. Rb1 {[%emt 0:23:21]} Qc3+ {[%emt 0:10:08]} 10. Qd2 {[%emt 0:00:39]} Qxd2+ {[%emt 0:00:28]} 11. Kxd2 {[%emt 0:00:10]} Nc6 {[%emt 0:00:31]} 12. e3 {[%emt 0:01:50]} Nge7 {[%emt 0:02:41]} 13. Bd3 {[%emt 0:07:25]} b6 {[%emt 0:05:53]} 14. Rhd1 {[%emt 0:01:09]} d6 {[%emt 0:02:57]} 15. exd6 {[%emt 0:01:38]} cxd6 {[%emt 0:00:10]} 16. Bb5 {[%emt 0:00:37]} O-O {[%emt 0:01:10]} 17. Ke2 {[%emt 0:01:26]} Ne5 {[%emt 0:08:07]} 18. Rxd6 {[%emt 0:01:25]} Nxf3 {[%emt 0:01:10]} 19. gxf3 {[%emt 0:00:32]} Be6 {[%emt 0:04:42]} 20. a3 {[%emt 0:02:23]} Nd5 {[%emt 0:03:17]} 21. Rb3 {[%emt 0:01:57]} Rad8 {[%emt 0:06:59]} 22. Rxd8 {[%emt 0:01:45]} Rxd8 {[%emt 0:00:30]} 23. Rd3 {[%emt 0:00:15]} g6 {[%emt 0:02:13]} 24. c4 {[%emt 0:00:48]} Nf4+ {[%emt 0:09:45]} 25. exf4 {[%emt 0:00:15]} Rxd3 {[%emt 0:02:08]} 26. Kxd3 {[%emt 0:00:23]} Kf8 {[%emt 0:00:07]} 27. Kd4 {[%emt 0:01:43]} Ke7 {[%emt 0:03:17]} 28. Ke5 {[%emt 0:02:00]} f6+ {[%emt 0:00:57]} 29. Kd4 {[%emt 0:02:35]} Kd6 {[%emt 0:01:12]} 30. Ba4 {[%emt 0:01:33] normal} 1/2-1/2

[Event "DVM U14 2019"]
[Site "Magedburg"]
[Date "2019.12.28"]
[Round "4"]
[White "Abed, Karim"]
[Black "Toth, Marc"]
[Result "1-0"]
[ECO "D35"]
[WhiteElo "1513"]
[BlackElo "1564"]
[Annotator "NA"]
[PlyCount "74"]
[EventDate "2019.12.27"]
[EventType "team-tourn"]
[EventRounds "7"]
[EventCountry "GER"]
[SourceTitle "playchess.com"]
[Source "ChessBase"]
[SourceQuality "1"]
[WhiteTeam "SV Königsjäger Süd-West"]
[BlackTeam "SC Untergrombach"]
[WhiteTeamCountry "GER"]
[TimeControl "40/5400+30:1800+30"]

1. d4 {[%emt 0:00:00]} d5 {[%emt 0:00:00]} 2. c4 {[%emt 0:00:00]} e6 {[%emt 0:00:00]} 3. Nc3 {[%emt 0:00:00]} Nf6 {[%emt 0:00:00]} 4. e3 {[%emt 0:00:13]} Nbd7 {[%emt 0:00:00]} 5. Nf3 {[%emt 0:00:06]} Be7 {[%emt 0:00:27]} 6. Bd3 {[%emt 0:00:20]} O-O {[%emt 0:00:39]} 7. O-O {[%emt 0:00:05]} b6 {[%emt 0:00:05]} 8. cxd5 {[%emt 0:01:03]} exd5 {[%emt 0:00:21]} 9. Qc2 {[%emt 0:00:44]} Bb7 {[%emt 0:01:55]} 10. Rb1 {[%emt 0:01:02]} c5 {[%emt 0:06:35]} 11. a3 {[%emt 0:00:43]} Rc8 {[%emt 0:03:36]} 12. Bd2 {[%emt 0:02:37]} Re8 {[%emt 0:01:24]} 13. b4 {[%emt 0:01:12]} c4 {[%emt 0:06:43]} 14. Be2 {[%emt 0:00:40]} a6 {[%emt 0:02:27]} 15. a4 Qc7 {[%emt 0:01:48]} 16. b5 {[%emt 0:05:51]} a5 {[%emt 0:02:02]} 17. Bc1 {[%emt 0:02:45]} Nf8 {[%emt 0:07:13]} 18. Nd2 {[%emt 0:02:53]} Bd6 {[%emt 0:03:15]} 19. h3 {[%emt 0:00:52]} Ng6 {[%emt 0:01:36]} 20. Re1 {[%emt 0:04:21]} Bb4 {[%emt 0:04:35]} 21. Bb2 {[%emt 0:01:25]} Rcd8 {[%emt 0:01:16]} 22. Qc1 {[%emt 0:06:44]} Bc8 {[%emt 0:07:44]} 23. Ba3 {[%emt 0:00:46]} Bd6 {[%emt 0:05:43]} 24. Bf3 {[%emt 0:01:23]} Nh4 {[%emt 0:02:26]} 25. Ra1 {[%emt 0:06:29]} Be6 {[%emt 0:06:48]} 26. Bxd6 {[%emt 0:00:34]} Qxd6 {[%emt 0:01:06]} 27. e4 {[%emt 0:06:03]} dxe4 {[%emt 0:08:15]} 28. Ncxe4 {[%emt 0:00:39]} Qxd4 {[%emt 0:01:35]} 29. Nxf6+ {[%emt 0:00:20]} Qxf6 {[%emt 0:00:16]} 30. Bc6 {[%emt 0:00:07]} Rf8 {[%emt 0:09:45]} 31. Nxc4 {[%emt 0:02:37]} Bxc4 {[%emt 0:02:39]} 32. Qxc4 {[%emt 0:00:09]} Rd2 {[%emt 0:02:17]} 33. Qf1 {[%emt 0:02:14]} Rfd8 {[%emt 0:01:35]} 34. Rad1 {[%emt 0:01:31]} g6 {[%emt 0:05:18]} 35. Re8+ {[%emt 0:02:39]} Kg7 {[%emt 0:00:20]} 36. Rxd2 {[%emt 0:16:49]} Rxd2 {[%emt 0:00:38]} 37. Qd1 Qd8 {normal} 1-0

[Event "DVM U14 2019"]
[Site "Magedburg"]
[Date "2019.12.28"]
[Round "4"]
[White "Rennkamp, Johannes"]
[Black "Gerber, Anna Sophie"]
[Result "1-0"]
[ECO "A45"]
[WhiteElo "1493"]
[BlackElo "1513"]
[Annotator "NA"]
[PlyCount "119"]
[EventDate "2019.12.27"]
[EventType "team-tourn"]
[EventRounds "7"]
[EventCountry "GER"]
[SourceTitle "playchess.com"]
[Source "ChessBase"]
[SourceQuality "1"]
[WhiteTeam "SC Turm Lüneburg"]
[BlackTeam "ESV Gera"]
[BlackTeamCountry "GER"]
[TimeControl "40/5400+30:1800+30"]

1. d4 {[%emt 0:00:00]} Nf6 {[%emt 0:00:00]} 2. Bg5 {[%emt 0:00:00]} e6 {[%emt 0:00:03]} 3. e4 {[%emt 0:00:00]} Be7 {[%emt 0:00:15]} 4. e5 {[%emt 0:00:00]} Nd5 {[%emt 0:00:51]} 5. Bxe7 {[%emt 0:00:04]} Nxe7 {[%emt 0:00:23]} 6. f4 {[%emt 0:00:33]} d5 {[%emt 0:03:07]} 7. Bd3 {[%emt 0:01:21]} b6 {[%emt 0:03:26]} 8. Nf3 {[%emt 0:00:35]} Ba6 {[%emt 0:03:10]} 9. c3 {[%emt 0:01:17]} Bxd3 {[%emt 0:01:15]} 10. Qxd3 {[%emt 0:00:05]} Nd7 {[%emt 0:00:31]} 11. O-O {[%emt 0:00:51]} c5 {[%emt 0:01:06]} 12. Nbd2 {[%emt 0:00:54]} O-O {[%emt 0:02:35]} 13. Ng5 {[%emt 0:02:17]} Ng6 {[%emt 0:04:43]} 14. Nh3 {[%emt 0:01:43]} cxd4 {[%emt 0:02:22]} 15. cxd4 {[%emt 0:00:28]} f6 {[%emt 0:01:21]} 16. Nf3 {[%emt 0:08:05]} Qe7 {[%emt 0:06:02]} 17. Rac1 {[%emt 0:01:48]} Rfc8 {[%emt 0:08:57]} 18. Qa6 {[%emt 0:07:45]} Qd8 {[%emt 0:06:28]} 19. g3 {[%emt 0:03:16]} Rc7 {[%emt 0:02:17]} 20. Rc3 {[%emt 0:02:09]} Rac8 {[%emt 0:03:20]} 21. Rfc1 {[%emt 0:00:26]} Rxc3 {[%emt 0:05:11]} 22. Rxc3 {[%emt 0:01:22]} Rxc3 {[%emt 0:02:27]} 23. bxc3 {[%emt 0:00:25]} Qc7 {[%emt 0:02:32]} 24. Qd3 {[%emt 0:01:19]} Nb8 {[%emt 0:05:20]} 25. Nf2 {[%emt 0:04:03]} Nc6 {[%emt 0:04:15]} 26. Ng4 {[%emt 0:01:16]} f5 {[%emt 0:03:49]} 27. Ne3 {[%emt 0:00:11]} Na5 {[%emt 0:02:47]} 28. Nd2 {[%emt 0:03:22]} Ne7 {[%emt 0:02:42]} 29. c4 {[%emt 0:03:31]} dxc4 {[%emt 0:02:20]} 30. Ndxc4 {[%emt 0:00:46]} Nxc4 {[%emt 0:01:08]} 31. Nxc4 {[%emt 0:07:55]} b5 {[%emt 0:02:15]} 32. Nd6 {[%emt 0:01:57]} a6 {[%emt 0:03:29]} 33. Qb3 {[%emt 0:00:42]} Nd5 {[%emt 0:01:02]} 34. Qa3 {[%emt 0:32:11]} Qc6 {[%emt 0:07:30]} 35. Qa5 {[%emt 0:01:23]} Qb6 {[%emt 0:04:05]} 36. Qxb6 {[%emt 0:00:31]} Nxb6 {[%emt 0:00:01]} 37. Kf2 Nd5 {[%emt 0:01:21]} 38. Ke1 {[%emt 0:05:26]} Nc3 {[%emt 0:01:29]} 39. a3 {[%emt 0:00:55]} Nb1 {[%emt 0:00:37]} 40. Nb7 {[%emt 0:00:17]} Kf7 {[%emt 0:01:32]} 41. a4 {[%emt 0:30:30]} bxa4 {[%emt 0:30:34]} 42. Nc5 {[%emt 0:00:05]} a3 {[%emt 0:01:11]} 43. Nb3 {[%emt 0:00:14]} Nc3 {[%emt 0:00:00]} 44. Kd2 {[%emt 0:00:00]} Ne4+ {[%emt 0:00:00]} 45. Kc2 {[%emt 0:00:00]} Nf2 {[%emt 0:00:00]} 46. Nc1 {[%emt 0:00:00]} Ne4 {[%emt 0:00:00]} 47. Kb3 {[%emt 0:00:00]} Nd2+ {[%emt 0:00:00]} 48. Kxa3 {[%emt 0:00:00]} Nf1 {[%emt 0:00:00]} 49. Kb4 {[%emt 0:00:00]} Nxh2 {[%emt 0:00:00]} 50. Ka5 {[%emt 0:00:00]} h6 {[%emt 0:00:00]} 51. Kxa6 {[%emt 0:00:00]} g5 {[%emt 0:00:00]} 52. fxg5 {[%emt 0:00:00]} hxg5 {[%emt 0:00:00]} 53. Ne2 {[%emt 0:00:00]} Ng4 {[%emt 0:00:00]} 54. Kb5 {[%emt 0:00:00]} Ne3 {[%emt 0:00:00]} 55. Kc5 {[%emt 0:00:00]} Ke7 {[%emt 0:00:00]} 56. Kc6 {[%emt 0:00:00]} Nd5 {[%emt 0:00:00]} 57. Kc5 {[%emt 0:00:00]} f4 {[%emt 0:00:00]} 58. gxf4 {[%emt 0:00:00]} Nxf4 {[%emt 0:00:00]} 59. Nxf4 {[%emt 0:00:00]} gxf4 {[%emt 0:00:00]} 60. Kc4 {normal} 1-0

[Event "DVM U14 2019"]
[Site "Magedburg"]
[Date "2019.12.28"]
[Round "4"]
[White "Richter, Simon"]
[Black "Boissel, Kasimir"]
[Result "1/2-1/2"]
[ECO "C50"]
[WhiteElo "1476"]
[BlackElo "1638"]
[Annotator "NA"]
[PlyCount "88"]
[EventDate "2019.12.27"]
[EventType "team-tourn"]
[EventRounds "7"]
[EventCountry "GER"]
[SourceTitle "playchess.com"]
[Source "ChessBase"]
[SourceQuality "1"]
[WhiteTeam "SC Untergrombach"]
[BlackTeam "SV Königsjäger Süd-West"]
[TimeControl "40/5400+30:1800+30"]

1. e4 {[%emt 0:00:00]} e5 {[%emt 0:00:00]} 2. Nf3 {[%emt 0:00:00]} Nf6 {[%emt 0:00:00]} 3. Nc3 {[%emt 0:00:00]} Bc5 {[%emt 0:00:00]} 4. Bc4 {[%emt 0:00:18]} Nc6 {[%emt 0:00:00]} 5. d3 {[%emt 0:00:27]} d6 {[%emt 0:00:00]} 6. h3 {[%emt 0:00:57]} Be6 {[%emt 0:00:06]} 7. Bb3 {[%emt 0:01:01]} Qd7 {[%emt 0:02:44]} 8. Ne2 {[%emt 0:04:12]} Ne7 {[%emt 0:01:47]} 9. Be3 {[%emt 0:01:28]} Bb6 {[%emt 0:00:19]} 10. c3 {[%emt 0:00:27]} Ng6 {[%emt 0:00:46]} 11. Bc2 {[%emt 0:02:34]} d5 {[%emt 0:02:14]} 12. Bxb6 {[%emt 0:08:09]} axb6 {[%emt 0:01:58]} 13. a4 {[%emt 0:00:26]} dxe4 {[%emt 0:00:55]} 14. dxe4 {[%emt 0:00:48]} O-O {[%emt 0:00:29]} 15. Qxd7 {[%emt 0:04:28]} Nxd7 {[%emt 0:00:36]} 16. O-O {[%emt 0:01:33]} Bc4 {[%emt 0:02:59]} 17. Rfe1 {[%emt 0:01:28]} Nc5 {[%emt 0:00:37]} 18. Nc1 {[%emt 0:20:11]} h6 {[%emt 0:05:41]} 19. b3 {[%emt 0:01:34]} Be6 {[%emt 0:00:18]} 20. b4 {[%emt 0:02:24]} Nd7 {[%emt 0:00:40]} 21. Nd3 {[%emt 0:17:00]} Rfe8 {[%emt 0:10:35]} 22. Nh2 {[%emt 0:06:51]} Nf6 {[%emt 0:01:31]} 23. f3 {[%emt 0:05:53]} Red8 {[%emt 0:03:15]} 24. Red1 {[%emt 0:01:27]} Bc4 {[%emt 0:01:01]} 25. Nb2 {[%emt 0:01:09]} Be2 {[%emt 0:05:40]} 26. Rxd8+ {[%emt 0:02:47]} Rxd8 {[%emt 0:00:02]} 27. Bd1 {[%emt 0:00:21]} Rd2 {[%emt 0:02:26]} 28. Bxe2 {[%emt 0:01:55]} Rxb2 {[%emt 0:00:29]} 29. Bf1 {[%emt 0:03:10]} Rb3 {[%emt 0:02:28]} 30. Rd1 {[%emt 0:02:26]} Rxc3 {[%emt 0:01:54]} 31. Rd8+ {[%emt 0:00:06]} Nf8 {[%emt 0:00:35]} 32. Rb8 {[%emt 0:04:51]} Ra3 {[%emt 0:01:00]} 33. Rxb7 {[%emt 0:00:37]} Rxa4 {[%emt 0:00:38]} 34. Rxc7 {[%emt 0:02:13]} Rxb4 {[%emt 0:00:48]} 35. Bc4 {[%emt 0:00:41]} N6d7 {[%emt 0:03:00]} 36. Bd5 {[%emt 0:01:17]} b5 {[%emt 0:03:43]} 37. Ng4 {[%emt 0:00:41]} Rb1+ {[%emt 0:01:09]} 38. Kh2 {[%emt 0:01:10]} b4 {[%emt 0:01:06]} 39. Rb7 {[%emt 0:00:37]} h5 {[%emt 0:03:56]} 40. Ne3 {[%emt 0:01:21]} g6 {[%emt 0:04:44]} 41. Nc4 Kg7 42. Nd6 f6 43. Bc6 Rd1 44. Ne8+ Kf7 {normal} 1/2-1/2

[Event "DVM U14 2019"]
[Site "Magedburg"]
[Date "2019.12.28"]
[Round "4"]
[White "Frank, Marek"]
[Black "Wusterack, Paul"]
[Result "1-0"]
[ECO "A20"]
[WhiteElo "1430"]
[BlackElo "1539"]
[Annotator "NA"]
[PlyCount "61"]
[EventDate "2019.12.27"]
[EventType "team-tourn"]
[EventRounds "7"]
[EventCountry "GER"]
[SourceTitle "playchess.com"]
[Source "ChessBase"]
[SourceQuality "1"]
[WhiteTeam "ESV Gera"]
[BlackTeam "SC Turm Lüneburg"]
[WhiteTeamCountry "GER"]
[TimeControl "40/5400+30:1800+30"]

1. c4 {[%emt 0:00:00]} e5 {[%emt 0:00:00]} 2. g3 {[%emt 0:00:11]} Nf6 {[%emt 0:00:07]} 3. Bg2 {[%emt 0:00:08]} c6 {[%emt 0:00:06]} 4. d4 {[%emt 0:03:01]} exd4 {[%emt 0:07:02]} 5. Qxd4 {[%emt 0:00:08]} Na6 {[%emt 0:00:45]} 6. Nf3 {[%emt 0:08:07]} Bc5 {[%emt 0:01:06]} 7. Qd1 {[%emt 0:01:04]} h6 {[%emt 0:02:08]} 8. O-O {[%emt 0:01:21]} O-O {[%emt 0:00:20]} 9. a3 {[%emt 0:01:44]} Nc7 {[%emt 0:02:50]} 10. b4 {[%emt 0:02:43]} Be7 {[%emt 0:00:16]} 11. Qc2 {[%emt 0:00:34]} a5 {[%emt 0:03:00]} 12. bxa5 {[%emt 0:04:49]} Rxa5 {[%emt 0:00:17]} 13. Be3 {[%emt 0:12:32]} Bc5 {[%emt 0:23:06]} 14. Nd4 {[%emt 0:09:44]} Bxd4 {[%emt 0:05:28]} 15. Bxd4 {[%emt 0:00:18]} Ne6 {[%emt 0:00:49]} 16. Bc3 {[%emt 0:02:17]} Ra8 {[%emt 0:02:32]} 17. Rd1 {[%emt 0:03:02]} Qe7 {[%emt 0:14:27]} 18. Be5 {[%emt 0:07:32]} Ne8 {[%emt 0:01:56]} 19. Nd2 {[%emt 0:03:59]} Rxa3 {[%emt 0:03:03]} 20. Rxa3 {[%emt 0:03:14]} Qxa3 {[%emt 0:00:09]} 21. Ne4 {[%emt 0:00:25]} f6 {[%emt 0:04:13]} 22. Bd6 {[%emt 0:00:40]} Nxd6 {[%emt 0:00:24]} 23. Nxd6 {[%emt 0:00:10]} Qa5 {[%emt 0:13:27]} 24. h4 {[%emt 0:06:40]} f5 {[%emt 0:05:07]} 25. Bh3 {[%emt 0:08:22]} f4 {[%emt 0:02:39]} 26. Nxc8 {[%emt 0:02:16]} fxg3 {[%emt 0:02:01]} 27. fxg3 {[%emt 0:05:09]} Qc5+ {[%emt 0:00:48]} 28. Kh1 {[%emt 0:01:31]} Rxc8 {[%emt 0:00:56]} 29. Rxd7 {[%emt 0:02:41]} Nf8 {[%emt 0:02:33]} 30. Rxb7 {[%emt 0:03:57]} Ra8 {[%emt 0:00:13]} 31. Qc3 {normal} 1-0

[Event "DVM U14 2019"]
[Site "Magedburg"]
[Date "2019.12.29"]
[Round "5"]
[White "Eilenberg, Jonas"]
[Black "Schroeter, Christopher"]
[Result "1-0"]
[ECO "D35"]
[WhiteElo "2112"]
[BlackElo "1618"]
[Annotator "ChessBase"]
[PlyCount "109"]
[EventDate "2019.12.27"]
[EventType "team-tourn"]
[EventRounds "7"]
[EventCountry "GER"]
[SourceTitle "playchess.com"]
[Source "ChessBase"]
[SourceQuality "1"]
[WhiteTeam "SV Königsjäger Süd-West"]
[BlackTeam "1. SC Anhalt"]
[WhiteTeamCountry "GER"]
[BlackTeamCountry "GER"]
[TimeControl "40/5400+30:1800+30"]

1. d4 {[%emt 0:00:00]} d5 {[%emt 0:00:00]} 2. c4 {[%emt 0:00:00]} e6 {[%emt 0:00:00]} 3. Nc3 {[%emt 0:00:00]} Nf6 {[%emt 0:00:00]} 4. cxd5 {[%emt 0:00:00]} exd5 {[%emt 0:00:00]} 5. Bg5 {[%emt 0:00:00]} Bb4 {[%emt 0:00:04]} 6. e3 {[%emt 0:00:00]} c6 {[%emt 0:00:14]} 7. Bd3 {[%emt 0:00:04]} Nbd7 {[%emt 0:00:26]} 8. Nf3 {[%emt 0:00:05]} Qc7 {[%emt 0:00:32]} 9. O-O {[%emt 0:00:12]} Bxc3 {[%emt 0:00:05]} 10. bxc3 {[%emt 0:00:05]} O-O {[%emt 0:00:11]} 11. Rc1 {[%emt 0:00:32]} Qa5 {[%emt 0:01:30]} 12. Qc2 {[%emt 0:00:53]} Re8 {[%emt 0:00:23]} 13. Bh4 {[%emt 0:00:41]} c5 {[%emt 0:03:45]} 14. Bg3 {[%emt 0:02:28]} c4 {[%emt 0:01:28]} 15. Be2 {[%emt 0:01:37]} Ne4 {[%emt 0:00:31]} 16. Nd2 {[%emt 0:02:57]} Nxg3 {[%emt 0:05:38]} 17. hxg3 {[%emt 0:00:30]} Nf6 {[%emt 0:02:35]} 18. Bf3 {[%emt 0:04:01]} Bd7 {[%emt 0:06:53]} 19. Rfe1 {[%emt 0:01:43]} b5 {[%emt 0:03:31]} 20. e4 {[%emt 0:00:52]} Bc6 {[%emt 0:02:19]} 21. e5 {[%emt 0:02:12]} Nd7 {[%emt 0:00:39]} 22. Nf1 {[%emt 0:02:00]} b4 {[%emt 0:06:17]} 23. Ne3 {[%emt 0:02:28]} Nb6 {[%emt 0:00:28]} 24. Qf5 {[%emt 0:07:45]} Bd7 {[%emt 0:03:58]} 25. Qg5 {[%emt 0:02:15]} h6 {[%emt 0:01:04]} 26. Qh5 {[%emt 0:00:33]} bxc3 {[%emt 0:04:55]} 27. g4 {[%emt 0:02:23]} Be6 {[%emt 0:02:30]} 28. g5 {[%emt 0:02:20]} hxg5 {[%emt 0:00:37]} 29. Qxg5 {[%emt 0:00:52]} Qa3 {[%emt 0:01:03]} 30. g3 {[%emt 0:03:22]} Qe7 {[%emt 0:00:10]} 31. Qh5 {[%emt 0:00:44]} g6 {[%emt 0:03:40]} 32. Qh2 {[%emt 0:00:59]} Kg7 {[%emt 0:00:33]} 33. Qg2 {[%emt 0:02:22]} Qd7 {[%emt 0:00:48]} 34. g4 {[%emt 0:01:48]} Rh8 {[%emt 0:01:04]} 35. Qg3 {[%emt 0:02:25]} Rh7 {[%emt 0:04:23]} 36. Rxc3 {[%emt 0:04:57]} Rah8 {[%emt 0:04:11]} 37. Bg2 {[%emt 0:01:56]} Rh4 {[%emt 0:07:51]} 38. f3 {[%emt 0:02:03]} Qe7 {[%emt 0:03:56]} 39. f4 {[%emt 0:01:54]} Qd8 {[%emt 0:02:39]} 40. Ra3 {[%emt 0:03:17]} Qe7 {[%emt 0:08:19]} 41. Ra5 {[%emt 0:34:44]} R8h6 {[%emt 0:43:03]} 42. f5 {[%emt 0:01:37]} gxf5 {[%emt 0:00:39]} 43. gxf5+ {[%emt 0:00:29]} Kh8 {[%emt 0:00:31]} 44. fxe6 {[%emt 0:01:02]} Rg6 {[%emt 0:00:57]} 45. Rxa7 {[%emt 0:01:18]} Qxa7 {[%emt 0:01:19]} 46. Qxh4+ {[%emt 0:00:06]} Kg8 {[%emt 0:00:38]} 47. Qd8+ {[%emt 0:00:40]} Kh7 {[%emt 0:01:12]} 48. e7 {[%emt 0:00:18]} Qa5 {[%emt 0:01:06]} 49. Rf1 {[%emt 0:00:19]} Qd2 {[%emt 0:01:05]} 50. Rxf7+ {[%emt 0:01:07]} Rg7 {[%emt 0:00:25]} 51. Rxg7+ {[%emt 0:00:13]} Kxg7 {[%emt 0:00:08]} 52. Qf8+ {[%emt 0:00:04]} Kh7 {[%emt 0:00:11]} 53. Qf7+ {[%emt 0:00:24]} Kh6 {[%emt 0:00:18]} 54. Qf4+ {[%emt 0:00:11]} Kg7 {[%emt 0:00:17]} 55. Nf5+ {[%emt 0:00:04] normal} 1-0

[Event "DVM U14 2019"]
[Site "Magedburg"]
[Date "2019.12.29"]
[Round "5"]
[White "Garner, Isaac"]
[Black "Muller, Magnus"]
[Result "1-0"]
[ECO "C01"]
[WhiteElo "2040"]
[BlackElo "1481"]
[Annotator "NA"]
[PlyCount "57"]
[EventDate "2019.12.27"]
[EventType "team-tourn"]
[EventRounds "7"]
[EventCountry "GER"]
[SourceTitle "playchess.com"]
[Source "ChessBase"]
[SourceQuality "1"]
[WhiteTeam "Hamburger SK"]
[BlackTeam "ESV Gera"]
[WhiteTeamCountry "GER"]
[BlackTeamCountry "FAI"]
[TimeControl "40/5400+30:1800+30"]

1. e4 {[%emt 0:00:00]} e6 {[%emt 0:00:17]} 2. d4 {[%emt 0:00:00]} d5 {[%emt 0:00:03]} 3. exd5 {[%emt 0:02:33]} exd5 {[%emt 0:00:06]} 4. Nf3 {[%emt 0:00:04]} Nf6 {[%emt 0:00:03]} 5. Bd3 {[%emt 0:00:04]} Bd6 {[%emt 0:00:06]} 6. Qe2+ {[%emt 0:00:04]} Be6 {[%emt 0:00:21] unterminated} 7. Ng5 {[%emt 0:07:29]} Qe7 {[%emt 0:00:37] unterminated} 8. Nxe6 {[%emt 0:00:59]} fxe6 {[%emt 0:00:23] unterminated} 9. O-O $15 {[%emt 0:06:37]} Nc6 {[%emt 0:06:57]} 10. c3 {[%emt 0:08:39]} e5 {[%emt 0:07:54]} 11. Be3 {[%emt 0:07:34]} O-O {[%emt 0:03:49]} 12. Nd2 {[%emt 0:05:18]} Rae8 {[%emt 0:04:43]} 13. Rae1 {[%emt 0:03:59]} Qd7 {[%emt 0:08:13]} 14. Qd1 {[%emt 0:01:55]} Ng4 {[%emt 0:05:31]} 15. g3 {[%emt 0:02:29]} Nxe3 {[%emt 0:02:28]} 16. fxe3 {[%emt 0:00:11]} e4 {[%emt 0:00:32]} 17. Bb5 {[%emt 0:07:50]} Qh3 {[%emt 0:07:00]} 18. Rxf8+ {[%emt 0:05:42]} Rxf8 {[%emt 0:00:33]} 19. Bf1 {[%emt 0:00:05]} Qf5 {[%emt 0:00:36]} 20. Qe2 {[%emt 0:03:32]} Ne7 {[%emt 0:00:58]} 21. Bg2 {[%emt 0:02:51]} Qg5 {[%emt 0:02:07]} 22. c4 {[%emt 0:02:00]} c6 {[%emt 0:01:06]} 23. cxd5 {[%emt 0:01:57]} cxd5 {[%emt 0:00:08]} 24. Qb5 {[%emt 0:01:16]} Nc6 {[%emt 0:08:40]} 25. Nxe4 {[%emt 0:01:39]} Qf5 {[%emt 0:09:52]} 26. Rf1 {[%emt 0:00:25]} Qe6 {[%emt 0:00:08]} 27. Nxd6 {[%emt 0:00:37]} Rxf1+ {[%emt 0:02:21]} 28. Kxf1 {[%emt 0:00:46]} Qxd6 {[%emt 0:00:09]} 29. Qxd5+ {[%emt 0:00:06] normal} 1-0